[Event "Titled Tuesday Blitz November 22 Early 2022"]
[White "Matveeva, Olga"]
[Black "Thorhallsson, Simon"]
[WhiteFideId "24107018"]
[BlackFideId "2310090"]
[WhiteElo "2055"]
[BlackElo "2109"]
[Result "0-1"]
[Round "07"]
[TimeControl "180+1"]
[Date "2022.11.23"]
[WhiteClock "0:00:34"]
[BlackClock "0:01:18"]

1. d4 {[%clk 0:03:00]}  Nf6 {[%clk 0:02:59]} 2. c4 {[%clk 0:02:59]}  e6 {[%clk 0:02:59]} 3. g3 {[%clk 0:03:00]}  Bb4+ {[%clk 0:02:56]} 4. Bd2 {[%clk 0:03:00]}  Qe7 {[%clk 0:02:56]} 5. Nf3 {[%clk 0:02:59]}  Nc6 {[%clk 0:02:54]} 6. Nc3 {[%clk 0:02:58]}  Bxc3 {[%clk 0:02:52]} 7. Bxc3 {[%clk 0:02:59]}  Ne4 {[%clk 0:02:52]} 8. Rc1 {[%clk 0:02:58]}  O-O {[%clk 0:02:43]} 9. Bg2 {[%clk 0:02:57]}  d6 {[%clk 0:02:43]} 10. O-O {[%clk 0:02:57]}  Nxc3 {[%clk 0:02:42]} 11. Rxc3 {[%clk 0:02:56]}  e5 {[%clk 0:02:42]} 12. d5 {[%clk 0:02:55]}  Nb8 {[%clk 0:02:42]} 13. b4 {[%clk 0:02:48]}  a5 {[%clk 0:02:40]} 14. a3 {[%clk 0:02:47]}  axb4 {[%clk 0:02:40]} 15. axb4 {[%clk 0:02:47]}  Bg4 {[%clk 0:02:29]} 16. c5 {[%clk 0:02:42]}  Na6 {[%clk 0:02:25]} 17. cxd6 {[%clk 0:02:11]}  Qxd6 {[%clk 0:02:23]} 18. Rc4 {[%clk 0:02:08]}  Bxf3 {[%clk 0:02:22]} 19. Bxf3 {[%clk 0:02:04]}  Nxb4 {[%clk 0:02:03]} 20. Qb3 {[%clk 0:01:55]}  c5 {[%clk 0:01:57]} 21. dxc6 {[%clk 0:01:53]}  Nxc6 {[%clk 0:01:58]} 22. Qxb7 {[%clk 0:01:42]}  Na5 {[%clk 0:01:55]} 23. Qc7 {[%clk 0:01:10]}  Nxc4 {[%clk 0:01:54]} 24. Qxc4 {[%clk 0:01:07]}  Rac8 {[%clk 0:01:53]} 25. Qh4 {[%clk 0:01:03]}  Rfe8 {[%clk 0:01:49]} 26. Be4 {[%clk 0:01:02]}  g6 {[%clk 0:01:49]} 27. Qh6 {[%clk 0:01:01]}  Rc4 {[%clk 0:01:42]} 28. Bg2 {[%clk 0:00:57]}  Rd4 {[%clk 0:01:41]} 29. e3 {[%clk 0:00:57]}  Rd1 {[%clk 0:01:41]} 30. h4 {[%clk 0:00:55]}  Rxf1+ {[%clk 0:01:40]} 31. Bxf1 {[%clk 0:00:56]}  Rb8 {[%clk 0:01:38]} 32. h5 {[%clk 0:00:55]}  Qf6 {[%clk 0:01:36]} 33. hxg6 {[%clk 0:00:53]}  hxg6 {[%clk 0:01:37]} 34. Qh3 {[%clk 0:00:51]}  Kg7 {[%clk 0:01:34]} 35. Qg4 {[%clk 0:00:50]}  Rb2 {[%clk 0:01:33]} 36. Be2 {[%clk 0:00:45]}  Qc6 {[%clk 0:01:28]} 37. Qf3 {[%clk 0:00:36]}  Rb1+ {[%clk 0:01:19]} 38. Bf1 {[%clk 0:00:34]}  Qxf3 {[%clk 0:01:18]} 0-1


[Site "https://www.chess.com"]

[Event "Titled Tuesday Blitz November 22 Early 2022"]
[White "Melikyan, Gnel"]
[Black "Ozen, Bahadir"]
[WhiteFideId "54109990"]
[BlackFideId "6337058"]
[WhiteElo "2138"]
[BlackElo "2503"]
[Result "1/2-1/2"]
[Round "07"]
[TimeControl "180+1"]
[Date "2022.11.22"]
[WhiteClock "0:00:02"]
[BlackClock "0:00:10"]

1. Nf3 {[%clk 0:02:58]}  Nf6 {[%clk 0:02:59]} 2. c4 {[%clk 0:02:56]}  d6 {[%clk 0:02:59]} 3. g3 {[%clk 0:02:55]}  e5 {[%clk 0:02:59]} 4. Bg2 {[%clk 0:02:56]}  Be7 {[%clk 0:02:59]} 5. O-O {[%clk 0:02:54]}  O-O {[%clk 0:03:00]} 6. d4 {[%clk 0:02:52]}  Nbd7 {[%clk 0:02:59]} 7. Nc3 {[%clk 0:02:51]}  c6 {[%clk 0:02:59]} 8. b3 {[%clk 0:02:42]}  Re8 {[%clk 0:02:55]} 9. dxe5 {[%clk 0:02:41]}  dxe5 {[%clk 0:02:55]} 10. Bb2 {[%clk 0:02:41]}  Qc7 {[%clk 0:02:52]} 11. Rc1 {[%clk 0:02:37]}  a5 {[%clk 0:02:47]} 12. Qc2 {[%clk 0:02:34]}  Bf8 {[%clk 0:02:41]} 13. Rfd1 {[%clk 0:02:31]}  Nc5 {[%clk 0:02:40]} 14. Ng5 {[%clk 0:02:15]}  h6 {[%clk 0:02:37]} 15. Nge4 {[%clk 0:02:15]}  Nfxe4 {[%clk 0:02:36]} 16. Nxe4 {[%clk 0:02:15]}  Nxe4 {[%clk 0:02:35]} 17. Bxe4 {[%clk 0:02:12]}  Be6 {[%clk 0:02:26]} 18. Bh7+ {[%clk 0:02:02]}  Kh8 {[%clk 0:02:26]} 19. Bf5 {[%clk 0:02:03]}  a4 {[%clk 0:02:07]} 20. Bxe6 {[%clk 0:01:47]}  Rxe6 {[%clk 0:02:07]} 21. bxa4 {[%clk 0:01:44]}  Bc5 {[%clk 0:02:05]} 22. Qb3 {[%clk 0:01:34]}  Re7 {[%clk 0:01:55]} 23. Ba3 {[%clk 0:01:29]}  Bxa3 {[%clk 0:01:41]} 24. Qxa3 {[%clk 0:01:28]}  Ree8 {[%clk 0:01:40]} 25. Rb1 {[%clk 0:01:25]}  Kg8 {[%clk 0:01:38]} 26. c5 {[%clk 0:01:13]}  Ra7 {[%clk 0:01:23]} 27. Rb4 {[%clk 0:01:01]}  Qe7 {[%clk 0:01:20]} 28. Qb3 {[%clk 0:00:38]}  g6 {[%clk 0:00:40]} 29. Rd6 {[%clk 0:00:20]}  Kg7 {[%clk 0:00:40]} 30. Qc3 {[%clk 0:00:15]}  Kg8 {[%clk 0:00:37]} 31. Qb3 {[%clk 0:00:14]}  Kg7 {[%clk 0:00:37]} 32. Qb2 {[%clk 0:00:15]}  Kg8 {[%clk 0:00:37]} 33. Kg2 {[%clk 0:00:15]}  e4 {[%clk 0:00:28]} 34. Qb3 {[%clk 0:00:13]}  Kg7 {[%clk 0:00:26]} 35. Qc3+ {[%clk 0:00:13]}  Qe5 {[%clk 0:00:20]} 36. Qxe5+ {[%clk 0:00:08]}  Rxe5 {[%clk 0:00:21]} 37. Rd7 {[%clk 0:00:09]}  Rxc5 {[%clk 0:00:22]} 38. Rbxb7 {[%clk 0:00:09]}  Rxb7 {[%clk 0:00:23]} 39. Rxb7 {[%clk 0:00:10]}  Rc2 {[%clk 0:00:24]} 40. e3 {[%clk 0:00:10]}  Rxa2 {[%clk 0:00:24]} 41. Rb4 {[%clk 0:00:10]}  f5 {[%clk 0:00:23]} 42. Rc4 {[%clk 0:00:11]}  Ra1 {[%clk 0:00:21]} 43. h3 {[%clk 0:00:10]}  h5 {[%clk 0:00:21]} 44. g4 {[%clk 0:00:11]}  h4 {[%clk 0:00:22]} 45. gxf5 {[%clk 0:00:10]}  gxf5 {[%clk 0:00:23]} 46. Rc5 {[%clk 0:00:10]}  Rxa4 {[%clk 0:00:12]} 47. Rxf5 {[%clk 0:00:10]}  Kg6 {[%clk 0:00:12]} 48. Rf4 {[%clk 0:00:10]}  Kg5 {[%clk 0:00:11]} 49. Rg4+ {[%clk 0:00:10]}  Kh5 {[%clk 0:00:11]} 50. Rg8 {[%clk 0:00:10]}  c5 {[%clk 0:00:12]} 51. Rc8 {[%clk 0:00:10]}  Rc4 {[%clk 0:00:12]} 52. Re8 {[%clk 0:00:10]}  Kg5 {[%clk 0:00:10]} 53. Re5+ {[%clk 0:00:10]}  Kg6 {[%clk 0:00:10]} 54. Kf1 {[%clk 0:00:10]}  Rc1+ {[%clk 0:00:10]} 55. Ke2 {[%clk 0:00:11]}  Rc2+ {[%clk 0:00:11]} 56. Ke1 {[%clk 0:00:11]}  Kh6 {[%clk 0:00:11]} 57. Rf5 {[%clk 0:00:11]}  Kg6 {[%clk 0:00:10]} 58. Rf4 {[%clk 0:00:10]}  Kg5 {[%clk 0:00:10]} 59. Rg4+ {[%clk 0:00:10]}  Kh5 {[%clk 0:00:10]} 60. Rxe4 {[%clk 0:00:11]}  Kg5 {[%clk 0:00:10]} 61. Rg4+ {[%clk 0:00:11]}  Kh5 {[%clk 0:00:11]} 62. Kf1 {[%clk 0:00:12]}  c4 {[%clk 0:00:11]} 63. Rd4 {[%clk 0:00:11]}  Kg5 {[%clk 0:00:11]} 64. Kg2 {[%clk 0:00:11]}  c3 {[%clk 0:00:11]} 65. Rg4+ {[%clk 0:00:12]}  Kh5 {[%clk 0:00:10]} 66. Rc4 {[%clk 0:00:11]}  Rc1 {[%clk 0:00:11]} 67. f4 {[%clk 0:00:12]}  Kg6 {[%clk 0:00:11]} 68. Rc5 {[%clk 0:00:12]}  c2 {[%clk 0:00:10]} 69. e4 {[%clk 0:00:06]}  Re1 {[%clk 0:00:10]} 70. Rxc2 {[%clk 0:00:06]}  Rxe4 {[%clk 0:00:10]} 71. Kf3 {[%clk 0:00:06]}  Ra4 {[%clk 0:00:10]} 72. Kg4 {[%clk 0:00:07]}  Rd4 {[%clk 0:00:10]} 73. Rc6+ {[%clk 0:00:07]}  Kg7 {[%clk 0:00:10]} 74. Rc5 {[%clk 0:00:07]}  Kf6 {[%clk 0:00:10]} 75. Rf5+ {[%clk 0:00:08]}  Kg6 {[%clk 0:00:10]} 76. Rg5+ {[%clk 0:00:08]}  Kh6 {[%clk 0:00:10]} 77. Rh5+ {[%clk 0:00:09]}  Kg6 {[%clk 0:00:11]} 78. Rxh4 {[%clk 0:00:09]}  Kg7 {[%clk 0:00:11]} 79. Rh5 {[%clk 0:00:09]}  Kg6 {[%clk 0:00:12]} 80. Rg5+ {[%clk 0:00:10]}  Kf6 {[%clk 0:00:13]} 81. h4 {[%clk 0:00:10]}  Rd1 {[%clk 0:00:13]} 82. Kh5 {[%clk 0:00:10]}  Rh1 {[%clk 0:00:13]} 83. Ra5 {[%clk 0:00:09]}  Rh2 {[%clk 0:00:13]} 84. f5 {[%clk 0:00:08]}  Rh1 {[%clk 0:00:13]} 85. Ra2 {[%clk 0:00:04]}  Kxf5 {[%clk 0:00:12]} 86. Rf2+ {[%clk 0:00:05]}  Ke6 {[%clk 0:00:12]} 87. Kg5 {[%clk 0:00:05]}  Rg1+ {[%clk 0:00:13]} 88. Kh6 {[%clk 0:00:06]}  Ke7 {[%clk 0:00:11]} 89. h5 {[%clk 0:00:06]}  Rg3 {[%clk 0:00:12]} 90. Kh7 {[%clk 0:00:06]}  Rg4 {[%clk 0:00:11]} 91. h6 {[%clk 0:00:06]}  Rg3 {[%clk 0:00:10]} 92. Rf5 {[%clk 0:00:06]}  Ke6 {[%clk 0:00:10]} 93. Rf8 {[%clk 0:00:06]}  Ke7 {[%clk 0:00:11]} 94. Rg8 {[%clk 0:00:07]}  Rh3 {[%clk 0:00:10]} 95. Rg5 {[%clk 0:00:06]}  Kf6 {[%clk 0:00:10]} 96. Rg1 {[%clk 0:00:06]}  Kf7 {[%clk 0:00:09]} 97. Rf1+ {[%clk 0:00:04]}  Ke7 {[%clk 0:00:10]} 98. Rg1 {[%clk 0:00:03]}  Kf7 {[%clk 0:00:10]} 99. Rg7+ {[%clk 0:00:04]}  Kf8 {[%clk 0:00:10]} 100. Rg6 {[%clk 0:00:03]}  Kf7 {[%clk 0:00:10]} 101. Ra6 {[%clk 0:00:04]}  Rh1 {[%clk 0:00:10]} 102. Kh8 {[%clk 0:00:04]}  Rh2 {[%clk 0:00:07]} 103. Ra7+ {[%clk 0:00:03]}  Kg6 {[%clk 0:00:06]} 104. h7 {[%clk 0:00:03]}  Rc2 {[%clk 0:00:06]} 105. Rg7+ {[%clk 0:00:03]}  Kh6 {[%clk 0:00:07]} 106. Rg8 {[%clk 0:00:02]}  Rc7 {[%clk 0:00:07]} 107. Rf8 {[%clk 0:00:02]}  Rxh7+ {[%clk 0:00:07]} 108. Kg8 {[%clk 0:00:03]}  Rg7+ {[%clk 0:00:08]} 109. Kh8 {[%clk 0:00:03]}  Rh7+ {[%clk 0:00:08]} 110. Kg8 {[%clk 0:00:03]}  Kg6 {[%clk 0:00:09]} 111. Rf6+ {[%clk 0:00:02]}  Kxf6 {[%clk 0:00:10]} 112. Kxh7 {[%clk 0:00:02]} 1/2-1/2


[Site "https://www.chess.com"]

[Event "Titled Tuesday Blitz November 22 Early 2022"]
[White "Mrudul Dehankar"]
[Black "Wagner, Dennis"]
[WhiteFideId "25096990"]
[BlackFideId "24650684"]
[WhiteElo "2068"]
[BlackElo "2470"]
[Result "1-0"]
[Round "07"]
[TimeControl "180+1"]
[Date "2022.11.23"]
[WhiteClock "0:00:19"]
[BlackClock "0:00:02"]

1. e4 {[%clk 0:02:41]}  e5 {[%clk 0:03:00]} 2. Nf3 {[%clk 0:02:38]}  Nc6 {[%clk 0:03:00]} 3. Bb5 {[%clk 0:02:37]}  a6 {[%clk 0:03:01]} 4. Ba4 {[%clk 0:02:37]}  Nf6 {[%clk 0:03:01]} 5. O-O {[%clk 0:02:37]}  Be7 {[%clk 0:03:02]} 6. Re1 {[%clk 0:02:36]}  b5 {[%clk 0:03:03]} 7. Bb3 {[%clk 0:02:36]}  O-O {[%clk 0:03:03]} 8. c3 {[%clk 0:02:36]}  d5 {[%clk 0:03:03]} 9. exd5 {[%clk 0:01:53]}  Nxd5 {[%clk 0:03:04]} 10. a4 {[%clk 0:01:45]}  b4 {[%clk 0:02:45]} 11. Nxe5 {[%clk 0:01:28]}  Nxe5 {[%clk 0:02:46]} 12. Rxe5 {[%clk 0:01:29]}  Bb7 {[%clk 0:02:39]} 13. d4 {[%clk 0:01:23]}  Bf6 {[%clk 0:02:26]} 14. Re1 {[%clk 0:01:21]}  c5 {[%clk 0:02:11]} 15. c4 {[%clk 0:01:10]}  Ne7 {[%clk 0:02:02]} 16. d5 {[%clk 0:01:05]}  Nf5 {[%clk 0:02:02]} 17. Bc2 {[%clk 0:01:02]}  Nd4 {[%clk 0:02:01]} 18. Bd3 {[%clk 0:01:00]}  Re8 {[%clk 0:01:54]} 19. Nd2 {[%clk 0:00:59]}  Rxe1+ {[%clk 0:01:41]} 20. Qxe1 {[%clk 0:00:58]}  Qd7 {[%clk 0:01:20]} 21. Ne4 {[%clk 0:00:56]}  Be7 {[%clk 0:01:14]} 22. Be3 {[%clk 0:00:55]}  h6 {[%clk 0:01:01]} 23. Bxd4 {[%clk 0:00:42]}  cxd4 {[%clk 0:01:02]} 24. Ng3 {[%clk 0:00:42]}  Bc5 {[%clk 0:00:55]} 25. Qe4 {[%clk 0:00:42]}  g6 {[%clk 0:00:53]} 26. Re1 {[%clk 0:00:41]}  Qxa4 {[%clk 0:00:48]} 27. h4 {[%clk 0:00:32]}  Kf8 {[%clk 0:00:30]} 28. Qe5 {[%clk 0:00:26]}  Kg8 {[%clk 0:00:22]} 29. Qc7 {[%clk 0:00:24]}  Bxd5 {[%clk 0:00:05]} 30. cxd5 {[%clk 0:00:20]}  Bf8 {[%clk 0:00:05]} 31. Ne4 {[%clk 0:00:20]}  Bg7 {[%clk 0:00:03]} 32. d6 {[%clk 0:00:19]}  Qb3 {[%clk 0:00:02]} 33. Bc4 {[%clk 0:00:19]} 1-0


[Site "https://www.chess.com"]

[Event "Titled Tuesday Blitz November 22 Early 2022"]
[White "Nakamura, Hikaru"]
[Black "Grandelius, Nils"]
[WhiteFideId "2016192"]
[BlackFideId "1710400"]
[WhiteElo "2909"]
[BlackElo "2617"]
[Result "1-0"]
[Round "07"]
[TimeControl "180+1"]
[Date "2022.11.22"]
[WhiteClock "0:00:16"]
[BlackClock "0:00:02"]

1. Nf3 {[%clk 0:03:00]}  d5 {[%clk 0:02:58]} 2. e3 {[%clk 0:02:56]}  c5 {[%clk 0:02:54]} 3. b3 {[%clk 0:02:55]}  g6 {[%clk 0:02:53]} 4. Bb2 {[%clk 0:02:55]}  Nf6 {[%clk 0:02:54]} 5. Bxf6 {[%clk 0:02:52]}  exf6 {[%clk 0:02:55]} 6. c3 {[%clk 0:02:52]}  Bd6 {[%clk 0:02:40]} 7. d4 {[%clk 0:02:51]}  O-O {[%clk 0:02:40]} 8. Be2 {[%clk 0:02:45]}  Nc6 {[%clk 0:02:34]} 9. O-O {[%clk 0:02:40]}  Re8 {[%clk 0:02:31]} 10. a3 {[%clk 0:02:39]}  Bf5 {[%clk 0:02:25]} 11. Nbd2 {[%clk 0:02:33]}  cxd4 {[%clk 0:02:22]} 12. cxd4 {[%clk 0:02:32]}  Qe7 {[%clk 0:02:12]} 13. b4 {[%clk 0:02:17]}  a5 {[%clk 0:02:11]} 14. b5 {[%clk 0:02:17]}  Na7 {[%clk 0:02:11]} 15. Qb3 {[%clk 0:02:08]}  Be6 {[%clk 0:01:42]} 16. Ne1 {[%clk 0:02:04]}  Nc8 {[%clk 0:01:26]} 17. b6 {[%clk 0:01:54]}  a4 {[%clk 0:01:04]} 18. Qb2 {[%clk 0:01:54]}  Qd8 {[%clk 0:00:59]} 19. Rb1 {[%clk 0:01:51]}  Qe7 {[%clk 0:01:00]} 20. Ra1 {[%clk 0:01:46]}  Qd8 {[%clk 0:01:00]} 21. Nd3 {[%clk 0:01:10]}  Nxb6 {[%clk 0:00:56]} 22. Nc5 {[%clk 0:01:08]}  Bxc5 {[%clk 0:00:50]} 23. dxc5 {[%clk 0:01:09]}  Nd7 {[%clk 0:00:51]} 24. Bb5 {[%clk 0:01:10]}  Re7 {[%clk 0:00:38]} 25. Bxd7 {[%clk 0:01:08]}  Rxd7 {[%clk 0:00:29]} 26. Nf3 {[%clk 0:01:09]}  Rc7 {[%clk 0:00:29]} 27. Rfc1 {[%clk 0:01:08]}  Qc8 {[%clk 0:00:28]} 28. Qb4 {[%clk 0:01:02]}  Bd7 {[%clk 0:00:17]} 29. h3 {[%clk 0:00:57]}  Kg7 {[%clk 0:00:17]} 30. Nd4 {[%clk 0:00:52]}  Bc6 {[%clk 0:00:11]} 31. Rab1 {[%clk 0:00:51]}  h5 {[%clk 0:00:10]} 32. Qc3 {[%clk 0:00:50]}  Bd7 {[%clk 0:00:10]} 33. Rb6 {[%clk 0:00:49]}  Bc6 {[%clk 0:00:08]} 34. Ne2 {[%clk 0:00:44]}  Qd8 {[%clk 0:00:08]} 35. Qd4 {[%clk 0:00:44]}  Qe7 {[%clk 0:00:08]} 36. Qb4 {[%clk 0:00:37]}  Qe5 {[%clk 0:00:07]} 37. Nd4 {[%clk 0:00:37]}  Rac8 {[%clk 0:00:08]} 38. Rb1 {[%clk 0:00:32]}  Bd7 {[%clk 0:00:05]} 39. Rxb7 {[%clk 0:00:30]}  Rxb7 {[%clk 0:00:02]} 40. Qxb7 {[%clk 0:00:30]}  Bf5 {[%clk 0:00:03]} 41. c6 {[%clk 0:00:20]}  Rc7 {[%clk 0:00:03]} 42. Nxf5+ {[%clk 0:00:20]}  Qxf5 {[%clk 0:00:03]} 43. Qxc7 {[%clk 0:00:20]}  Qxb1+ {[%clk 0:00:04]} 44. Kh2 {[%clk 0:00:21]}  Qe4 {[%clk 0:00:03]} 45. Qf4 {[%clk 0:00:16]}  Qc4 {[%clk 0:00:02]} 46. Qxc4 {[%clk 0:00:15]}  dxc4 {[%clk 0:00:02]} 47. c7 {[%clk 0:00:16]} 1-0


[Site "https://www.chess.com"]

[Event "Titled Tuesday Blitz November 22 Early 2022"]
[White "Omariev, Maksim"]
[Black "Makhmudov, Shukhrat"]
[WhiteFideId "4193423"]
[BlackFideId "14200775"]
[WhiteElo "2439"]
[BlackElo "2135"]
[Result "0-1"]
[Round "07"]
[TimeControl "180+1"]
[Date "2022.11.23"]
[WhiteClock "0:00:13"]
[BlackClock "0:00:20"]

1. g4 {[%clk 0:03:00]}  d5 {[%clk 0:02:52]} 2. Bg2 {[%clk 0:03:01]}  Bxg4 {[%clk 0:02:52]} 3. c4 {[%clk 0:03:01]}  c6 {[%clk 0:02:49]} 4. Qb3 {[%clk 0:03:01]}  Qb6 {[%clk 0:02:47]} 5. cxd5 {[%clk 0:03:00]}  Qxb3 {[%clk 0:02:47]} 6. axb3 {[%clk 0:03:01]}  cxd5 {[%clk 0:02:47]} 7. Bxd5 {[%clk 0:03:02]}  Nc6 {[%clk 0:02:47]} 8. Nc3 {[%clk 0:03:00]}  e6 {[%clk 0:02:44]} 9. Bg2 {[%clk 0:02:49]}  a6 {[%clk 0:02:43]} 10. Nf3 {[%clk 0:02:49]}  Nf6 {[%clk 0:02:42]} 11. d3 {[%clk 0:02:47]}  h6 {[%clk 0:02:40]} 12. Bf4 {[%clk 0:02:38]}  O-O-O {[%clk 0:02:23]} 13. Ne5 {[%clk 0:02:32]}  Nxe5 {[%clk 0:02:19]} 14. Bxe5 {[%clk 0:02:33]}  Bb4 {[%clk 0:02:15]} 15. Ra4 {[%clk 0:02:31]}  a5 {[%clk 0:01:58]} 16. h3 {[%clk 0:02:11]}  Bh5 {[%clk 0:01:53]} 17. Rg1 {[%clk 0:02:10]}  Rhg8 {[%clk 0:01:35]} 18. Kd2 {[%clk 0:01:59]}  Nd7 {[%clk 0:01:34]} 19. Bh2 {[%clk 0:01:52]}  Nb6 {[%clk 0:01:33]} 20. Raa1 {[%clk 0:01:49]}  Nd5 {[%clk 0:01:33]} 21. e4 {[%clk 0:01:05]}  Nc7 {[%clk 0:01:20]} 22. Kc2 {[%clk 0:00:56]}  b6 {[%clk 0:01:16]} 23. Bf4 {[%clk 0:00:53]}  Bc5 {[%clk 0:01:11]} 24. Be3 {[%clk 0:00:52]}  Bd4 {[%clk 0:01:06]} 25. Ra4 {[%clk 0:00:49]}  e5 {[%clk 0:01:00]} 26. h4 {[%clk 0:00:44]}  f6 {[%clk 0:00:58]} 27. Bh3+ {[%clk 0:00:43]}  Kb7 {[%clk 0:00:58]} 28. b4 {[%clk 0:00:30]}  Be8 {[%clk 0:00:58]} 29. Ra2 {[%clk 0:00:17]}  axb4 {[%clk 0:00:56]} 30. Bxd4 {[%clk 0:00:17]}  exd4 {[%clk 0:00:49]} 31. Nd5 {[%clk 0:00:10]}  Nxd5 {[%clk 0:00:47]} 32. exd5 {[%clk 0:00:11]}  Bf7 {[%clk 0:00:47]} 33. Rga1 {[%clk 0:00:03]}  b3+ {[%clk 0:00:43]} 34. Kxb3 {[%clk 0:00:02]}  Bxd5+ {[%clk 0:00:43]} 35. Kb4 {[%clk 0:00:03]}  Bxa2 {[%clk 0:00:42]} 36. Rxa2 {[%clk 0:00:04]}  Rge8 {[%clk 0:00:34]} 37. Bg2+ {[%clk 0:00:04]}  Kc7 {[%clk 0:00:27]} 38. Ra7+ {[%clk 0:00:04]}  Kd6 {[%clk 0:00:27]} 39. Be4 {[%clk 0:00:02]}  Rxe4 {[%clk 0:00:18]} 40. dxe4 {[%clk 0:00:02]}  Ke5 {[%clk 0:00:17]} 41. Kc4 {[%clk 0:00:01]}  d3 {[%clk 0:00:17]} 42. Re7+ {[%clk 0:00:01]}  Kf4 {[%clk 0:00:16]} 43. Rxg7 {[%clk 0:00:01]}  d2 {[%clk 0:00:16]} 44. Rg1 {[%clk 0:00:02]}  d1=Q {[%clk 0:00:16]} 45. Rxd1 {[%clk 0:00:03]}  Rxd1 {[%clk 0:00:16]} 46. b4 {[%clk 0:00:04]}  Kxe4 {[%clk 0:00:16]} 47. Kb5 {[%clk 0:00:05]}  Rb1 {[%clk 0:00:15]} 48. Kxb6 {[%clk 0:00:04]}  Rxb4+ {[%clk 0:00:14]} 49. Kc6 {[%clk 0:00:05]}  Kf3 {[%clk 0:00:14]} 50. h5 {[%clk 0:00:06]}  Rh4 {[%clk 0:00:14]} 51. Kd6 {[%clk 0:00:06]}  Rxh5 {[%clk 0:00:15]} 52. Ke6 {[%clk 0:00:07]}  Rg5 {[%clk 0:00:16]} 53. Kxf6 {[%clk 0:00:07]}  Kxf2 {[%clk 0:00:16]} 54. Kf7 {[%clk 0:00:07]}  h5 {[%clk 0:00:16]} 55. Kf6 {[%clk 0:00:08]}  Ra5 {[%clk 0:00:17]} 56. Kg6 {[%clk 0:00:08]}  h4 {[%clk 0:00:17]} 57. Kf6 {[%clk 0:00:09]}  h3 {[%clk 0:00:18]} 58. Kg6 {[%clk 0:00:10]}  h2 {[%clk 0:00:19]} 59. Kf7 {[%clk 0:00:11]}  h1=Q {[%clk 0:00:19]} 60. Kg7 {[%clk 0:00:12]}  Qc6 {[%clk 0:00:20]} 61. Kg8 {[%clk 0:00:13]}  Ra7 {[%clk 0:00:20]} 0-1


[Site "https://www.chess.com"]

[Event "Titled Tuesday Blitz November 22 Early 2022"]
[White "Orlov, Georgi"]
[Black "Kilic, Eray"]
[WhiteFideId "2011271"]
[BlackFideId "44517173"]
[WhiteElo "2544"]
[BlackElo "2328"]
[Result "1/2-1/2"]
[Round "07"]
[TimeControl "180+1"]
[Date "2022.11.23"]
[WhiteClock "0:00:04"]
[BlackClock "0:00:04"]

1. d4 {[%clk 0:03:00]}  Nf6 {[%clk 0:03:00]} 2. Nf3 {[%clk 0:03:00]}  g6 {[%clk 0:03:00]} 3. c4 {[%clk 0:02:59]}  Bg7 {[%clk 0:03:00]} 4. Nc3 {[%clk 0:02:59]}  d5 {[%clk 0:03:01]} 5. Qb3 {[%clk 0:02:57]}  dxc4 {[%clk 0:03:00]} 6. Qxc4 {[%clk 0:02:58]}  O-O {[%clk 0:03:00]} 7. e4 {[%clk 0:02:58]}  a6 {[%clk 0:03:01]} 8. e5 {[%clk 0:02:57]}  b5 {[%clk 0:02:56]} 9. Qb3 {[%clk 0:02:57]}  Nfd7 {[%clk 0:02:56]} 10. e6 {[%clk 0:02:57]}  fxe6 {[%clk 0:02:54]} 11. Ng5 {[%clk 0:02:56]}  Nb6 {[%clk 0:02:49]} 12. Nxe6 {[%clk 0:02:53]}  Bxe6 {[%clk 0:02:48]} 13. Qxe6+ {[%clk 0:02:52]}  Kh8 {[%clk 0:02:48]} 14. Be3 {[%clk 0:02:52]}  N8d7 {[%clk 0:02:47]} 15. Rd1 {[%clk 0:02:33]}  Nf6 {[%clk 0:02:46]} 16. Be2 {[%clk 0:02:30]}  Qd6 {[%clk 0:02:41]} 17. Qb3 {[%clk 0:02:19]}  Nbd5 {[%clk 0:02:34]} 18. Bf3 {[%clk 0:02:15]}  c6 {[%clk 0:02:35]} 19. O-O {[%clk 0:02:12]}  Rad8 {[%clk 0:02:32]} 20. Rfe1 {[%clk 0:02:03]}  Rd7 {[%clk 0:01:37]} 21. Bg5 {[%clk 0:01:56]}  Nxc3 {[%clk 0:01:36]} 22. bxc3 {[%clk 0:01:55]}  Nd5 {[%clk 0:01:35]} 23. Bxd5 {[%clk 0:01:42]}  cxd5 {[%clk 0:01:34]} 24. Rd3 {[%clk 0:01:35]}  e6 {[%clk 0:01:22]} 25. Rde3 {[%clk 0:01:34]}  Re8 {[%clk 0:01:19]} 26. Qd1 {[%clk 0:01:13]}  Rf7 {[%clk 0:01:16]} 27. Qe2 {[%clk 0:01:06]}  Ref8 {[%clk 0:00:56]} 28. f3 {[%clk 0:00:57]}  Qc6 {[%clk 0:00:54]} 29. Qd3 {[%clk 0:00:51]}  Rc7 {[%clk 0:00:50]} 30. Bh4 {[%clk 0:00:47]}  Re8 {[%clk 0:00:41]} 31. Bg3 {[%clk 0:00:47]}  Rcc8 {[%clk 0:00:41]} 32. h4 {[%clk 0:00:41]}  Bh6 {[%clk 0:00:27]} 33. Be5+ {[%clk 0:00:39]}  Kg8 {[%clk 0:00:27]} 34. f4 {[%clk 0:00:38]}  Qc4 {[%clk 0:00:26]} 35. Qd2 {[%clk 0:00:37]}  Rf8 {[%clk 0:00:23]} 36. Rg3 {[%clk 0:00:35]}  Rf5 {[%clk 0:00:23]} 37. Ree3 {[%clk 0:00:19]}  Rcf8 {[%clk 0:00:22]} 38. Ref3 {[%clk 0:00:18]}  Rxe5 {[%clk 0:00:17]} 39. dxe5 {[%clk 0:00:18]}  Bxf4 {[%clk 0:00:17]} 40. Qf2 {[%clk 0:00:16]}  Bh6 {[%clk 0:00:11]} 41. Rxf8+ {[%clk 0:00:15]}  Bxf8 {[%clk 0:00:12]} 42. Re3 {[%clk 0:00:13]}  Bc5 {[%clk 0:00:12]} 43. g3 {[%clk 0:00:11]}  a5 {[%clk 0:00:09]} 44. Kh2 {[%clk 0:00:11]}  Bxe3 {[%clk 0:00:09]} 45. Qxe3 {[%clk 0:00:11]}  b4 {[%clk 0:00:09]} 46. Qb6 {[%clk 0:00:09]}  Qe2+ {[%clk 0:00:06]} 47. Kh3 {[%clk 0:00:09]}  Qf1+ {[%clk 0:00:05]} 48. Kh2 {[%clk 0:00:09]}  Qe2+ {[%clk 0:00:05]} 49. Kh3 {[%clk 0:00:10]}  Qxe5 {[%clk 0:00:06]} 50. cxb4 {[%clk 0:00:07]}  Qf5+ {[%clk 0:00:06]} 51. Kh2 {[%clk 0:00:07]}  Qc2+ {[%clk 0:00:07]} 52. Kh3 {[%clk 0:00:07]}  Qf5+ {[%clk 0:00:07]} 53. Kh2 {[%clk 0:00:07]}  axb4 {[%clk 0:00:08]} 54. Qxb4 {[%clk 0:00:06]}  Qf2+ {[%clk 0:00:08]} 55. Kh3 {[%clk 0:00:06]}  Qf5+ {[%clk 0:00:08]} 56. Kh2 {[%clk 0:00:06]}  Qc2+ {[%clk 0:00:05]} 57. Kh3 {[%clk 0:00:06]}  Qxa2 {[%clk 0:00:05]} 58. Qb8+ {[%clk 0:00:06]}  Kf7 {[%clk 0:00:05]} 59. Qc7+ {[%clk 0:00:05]}  Kf6 {[%clk 0:00:06]} 60. Qf4+ {[%clk 0:00:05]}  Ke7 {[%clk 0:00:06]} 61. Qc7+ {[%clk 0:00:06]}  Ke8 {[%clk 0:00:07]} 62. Qc8+ {[%clk 0:00:06]}  Kf7 {[%clk 0:00:07]} 63. Qc7+ {[%clk 0:00:06]}  Kf8 {[%clk 0:00:07]} 64. Qc8+ {[%clk 0:00:04]}  Kg7 {[%clk 0:00:04]} 65. Qc7+ {[%clk 0:00:04]}  Kg8 {[%clk 0:00:04]} 66. Qc8+ {[%clk 0:00:04]}  Kf7 {[%clk 0:00:04]} 67. Qc7+ {[%clk 0:00:04]} 1/2-1/2


[Site "https://www.chess.com"]